{"text_format":"1","workbook":"xlsx","n_sheets":1,"sheets":["Sheet1"],"not_rendered":{"charts":0,"images":0,"macros":1,"external_links":0,"defined_names":4,"comments":0,"pivot_tables":0},"unopened":[],"bounds":{"document_bytes":16777216,"sheet_cells":100000,"rows_first":2000,"rows_last":500,"rows_between":2000,"halvings":0,"cell_chars":16384,"cell_head_chars":4096},"cells_cut":0,"cells_raw":0,"read":"whole","date_system":"1900"}

{"sheet":"Sheet1","index":0,"n_rows":45,"n_cols":28,"rows_kept":45,"cut":false,"hidden":false,"merged":[]}
[null,null,null,null,null,null,null,null,null,null,null,null,null,null,null,null,null,null,null,null,null,null,null,null,"Форма 2.1"]
[null,null,"СПЕЦИФИКАЦИЯ  НА ПОСТАВКУ ТМЦ",null,null,null,null,null,null,null,null,null,null,null,null,null,null,null,null,null,null,null,null,null,"Приложение № 1 к техническому предложению"]
[null,null,null,null,null,null,null,null,null,null,null,null,null,null,null,null,null,null,null,null,null,null,null,null," «______»_______________г.  № ______"]
[]
["Участник процедуры:______________________________________________"]
[]
["В ценах на момент подачи Предложения: \"___\"______________20__года"]
[]
["Заявка 081-0027708"]
[]
["Наименование лота:  ",null,"Поставка хозтоваров"]
[]
["№ п\\п","Код заявки","Наименование товара по заявке Покупателя","Код ОКПД-2 \n(указывается код ОКПД-2 с максимально возможной детализацией)","Применяемый национальный режим закупок по ПП РФ от 23.12.2024 № 1875\n\nЗАПРЕТ \n(Приложение 1 к ПП РФ № 1875)  / \nОГРНИЧЕНИЕ (Приложение 2 к ПП РФ № 1875)  / \nПРЕИМУЩЕСТВО\n\n(необходимо указать один из трех вариантов)","Наименование товара по предложению Участника (указывается конкретное наименование (торговая марка, маркировка производителя, артикул и т.д.) предлагаемой к поставке продукции)*","Ед. изм","Кол-во","Дата поставки по заявке Покупателя","Цена за ед. в руб без НДС*","Ставка НДС, %**","Цена за ед. в руб с НДС*","Стоимость в руб без НДС","Стоимость в руб с НДС","Требование ГОСТ","Требования ТС","Дополнительные условия Покупателя","Заказчик","Местонахождение заказчика","Производитель*","Страна происхождения*","Требуемый гарантийный срок","Дополнительный гарантийный срок, предлагаемый поставщиком \n(к основному гарантийному сроку, требуемому Заказчиком)","Включено в реестры, предусмотренные ПП РФ от 23.12.2024 № 1875: \n\n- российской промышленной продукции (ПП РФ от 17.07.2015 № 719);\n- евразийской промышленной продукции (Решение СЕЭК от 23.11.2020 № 105);\n- российского программного обеспечения (Федеральный закон от 27.07.2006 N 149-ФЗ);\n- евразийского программного обеспечения (ПП РФ от 16.11.2015 N 1236)\n\n(да (указать номер реестровой записи) / нет)\n","Наименование реестра,  адрес в сети Интернет (при наличии)\n","Информация о совокупном количестве баллов / об уровне радиоэлектронной продукции\n(при наличии)\n","Комментарий Заказчика","Комментарий Участника"]
[1,"1204825741-00010","Крем-мыло с увлажняющим эффектом, 250мл","20.41.32.119","Ограничение",null,"ШТ",280,"2026-09-23",null,22,{"$f":"ROUND(J14*((100+K14)/100),2)","v":0},{"$f":"ROUND(J14*H14,2)","v":0},{"$f":"ROUND(M14*((100+K14)/100),2)","v":0},"В соответствии с едиными техническими требованиями Охраны труда ПАО «МОЭСК»","","42.ТЗ Дерматология","Филиал «СЭС»","г. Москва улица Руставели дом 2с6",null,null,"С\\г не менее 24мес. с мом.изг. На мом.пост. с\\г должен быть не менее 18мес."]
[2,"1204825742-00010","Крем-мыло с увлажняющим эффектом, 250мл","20.41.32.119","Ограничение",null,"ШТ",236,"2026-09-23",null,22,0,0,0,"В соответствии с едиными техническими требованиями Охраны труда ПАО «МОЭСК»","","42.ТЗ Дерматология","Филиал «СЭС»","г. Королев улица Гагарина дом 4",null,null,"С\\г не менее 24мес. с мом.изг. На мом.пост. с\\г должен быть не менее 18мес."]
[3,"1204825738-00010","Крем от укусов кровососущих насекомых и гнуса 100мл","20.41.32.119","Ограничение",null,"ШТ",30,"2026-09-23",null,22,0,0,0,"В соответствии с едиными техническими требованиями Охраны труда ПАО «МОЭСК»","","42.ТЗ Дерматология","Филиал «СЭС»","г. Москва улица Руставели дом 2с6",null,null,"С\\г не менее 24мес. с мом.изг. На мом.пост. с\\г должен быть не менее 18мес."]
[4,"1204825739-00010","Крем от укусов кровососущих насекомых и гнуса 100мл","20.41.32.119","Ограничение",null,"ШТ",50,"2026-09-23",null,22,0,0,0,"В соответствии с едиными техническими требованиями Охраны труда ПАО «МОЭСК»","","42.ТЗ Дерматология","Филиал «СЭС»","г. Москва улица Руставели дом 2с6",null,null,"С\\г не менее 24мес. с мом.изг. На мом.пост. с\\г должен быть не менее 18мес."]
[5,"1204825740-00010","Крем от укусов кровососущих насекомых и гнуса 100мл","20.41.32.119","Ограничение",null,"ШТ",248,"2026-09-23",null,22,0,0,0,"В соответствии с едиными техническими требованиями Охраны труда ПАО «МОЭСК»","","42.ТЗ Дерматология","Филиал «СЭС»","г. Королев улица Гагарина дом 4",null,null,"С\\г не менее 24мес. с мом.изг. На мом.пост. с\\г должен быть не менее 18мес."]
[6,"1204825744-00010","Паста для очистки рук от устойчивых загрязнений, 200 мл","20.41.32.119","Ограничение",null,"ШТ",560,"2026-09-23",null,22,0,0,0,"В соответствии с едиными техническими требованиями Охраны труда ПАО «МОЭСК»","","42.ТЗ Дерматология","Филиал «СЭС»","г. Москва улица Руставели дом 2с6",null,null,"С\\г не менее 24мес. с мом.изг. На мом.пост. с\\г должен быть не менее 18мес."]
[7,"1204825745-00010","Паста для очистки рук от устойчивых загрязнений, 200 мл","20.41.32.119","Ограничение",null,"ШТ",200,"2026-09-23",null,22,0,0,0,"В соответствии с едиными техническими требованиями Охраны труда ПАО «МОЭСК»","","42.ТЗ Дерматология","Филиал «СЭС»","г. Москва улица Руставели дом 2с6",null,null,"С\\г не менее 24мес. с мом.изг. На мом.пост. с\\г должен быть не менее 18мес."]
[8,"1204825746-00010","Паста для очистки рук от устойчивых загрязнений, 200 мл","20.41.32.119","Ограничение",null,"ШТ",254,"2026-09-23",null,22,0,0,0,"В соответствии с едиными техническими требованиями Охраны труда ПАО «МОЭСК»","","42.ТЗ Дерматология","Филиал «СЭС»","г. Королев улица Гагарина дом 4",null,null,"С\\г не менее 24мес. с мом.изг. На мом.пост. с\\г должен быть не менее 18мес."]
[9,"1204825735-00010","Аэрозоль защитный от укусов кровососущих насекомых и клещей 100мл","20.41.32.119","Ограничение",null,"ШТ",490,"2026-09-23",null,22,0,0,0,"В соответствии с едиными техническими требованиями Охраны труда ПАО «МОЭСК»","","42.ТЗ Дерматология","Филиал «СЭС»","г. Москва улица Руставели дом 2с6",null,null,"С\\г не менее 24мес. с мом.изг. На мом.пост. с\\г должен быть не менее 18мес."]
[10,"1204825736-00010","Аэрозоль защитный от укусов кровососущих насекомых и клещей 100мл","20.41.32.119","Ограничение",null,"ШТ",250,"2026-09-23",null,22,0,0,0,"В соответствии с едиными техническими требованиями Охраны труда ПАО «МОЭСК»","","42.ТЗ Дерматология","Филиал «СЭС»","г. Москва улица Руставели дом 2с6",null,null,"С\\г не менее 24мес. с мом.изг. На мом.пост. с\\г должен быть не менее 18мес."]
[11,"1204825737-00010","Аэрозоль защитный от укусов кровососущих насекомых и клещей 100мл","20.41.32.119","Ограничение",null,"ШТ",184,"2026-09-23",null,22,0,0,0,"В соответствии с едиными техническими требованиями Охраны труда ПАО «МОЭСК»","","42.ТЗ Дерматология","Филиал «СЭС»","г. Королев улица Гагарина дом 4",null,null,"С\\г не менее 24мес. с мом.изг. На мом.пост. с\\г должен быть не менее 18мес."]
[12,"1204825743-00010","Мыло туалетное кусковое 90 гр","20.41.32.119","Ограничение",null,"ШТ",480,"2026-09-23",null,22,0,0,0,null,"","42.ТЗ Дерматология","Филиал «СЭС»","г. Москва улица Руставели дом 2с6",null,null,"12 месяцев"]
["Итого на сумму: ",null,null,null,null,null,null,null,null,null,null,null,{"$f":"SUM(M14:M25)","v":0},{"$f":"SUM(N14:N25)","v":0}]
[]
[]
["Цена включает все предусмотренные налоги и сборы, в т.ч. НДС, а также стоимость затрат на предпродажную подготовку, "]
["оформление отгрузочных и иных документов, необходимых для поставки."]
[]
["Условия поставки – франко-склад грузополучателя"]
[]
["Условия оплаты – по факту поставки в течение 30 рабочих дней (7 рабочих дней для субъектов МСП)"]
[null,null,"ENDTABLE"]
["______________________ ___________________________________"]
[" (подпись)  (фамилия, имя, отчество подписавшего, должность)"]
[]
[]
["** - Указывается значение в зависимости от применяемой участником системы налогообложения, указанной в оферте участника"]
[]
["Инструкция по заполнению представлена в приложении к Спецификации"]
[]
["Участник должен принять во внимание, что ссылки на тип продукции носят описательный, а не обязательный характер и указывают на требуемые технические характеристики продукции. "]
["Участник может предложить иные типы продукции, при условии, что произведённые замены по существу равноценны или превосходят по качеству продукцию, указанную в Техническом задании (Спецификации)"]